[Event "Late-Titled-Tuesday-Blitz-June-18-2024"]
[Site "Chess.com"]
[Date "2024.06.18"]
[Round "6"]
[White "jero888"]
[Black "OIAM03"]
[Result "1-0"]
[WhiteElo "2336"]
[BlackElo "2040"]
[TimeControl "180+1"]
[EndTime "15:07:12 PDT"]
[Termination "jero888 won on time"]

1. e4 {[%clk 0:03:00.9]} 1... c5 {[%clk 0:02:59.6]} 2. Nf3 {[%clk 0:03:01]} 2...
d6 {[%clk 0:02:59.4]} 3. Bb5+ {[%clk 0:03:01.2]} 3... Bd7 {[%clk 0:02:58.5]} 4.
Bxd7+ {[%clk 0:03:01.1]} 4... Nxd7 {[%clk 0:02:58.4]} 5. O-O {[%clk 0:03:01.7]}
5... g6 {[%clk 0:02:57.8]} 6. Qe2 {[%clk 0:03:00.9]} 6... Bg7 {[%clk 0:02:57.5]}
7. c3 {[%clk 0:02:51.7]} 7... Ngf6 {[%clk 0:02:55.6]} 8. d4 {[%clk 0:02:51.4]}
8... O-O {[%clk 0:02:43]} 9. e5 {[%clk 0:02:47.5]} 9... dxe5 {[%clk 0:02:37.2]}
10. dxe5 {[%clk 0:02:48.4]} 10... Nd5 {[%clk 0:02:35.8]} 11. e6 {[%clk
0:02:45.4]} 11... N7b6 {[%clk 0:02:29.2]} 12. exf7+ {[%clk 0:02:40.1]} 12...
Rxf7 {[%clk 0:02:28.6]} 13. Ng5 {[%clk 0:02:38.4]} 13... Rf5 {[%clk 0:02:11.6]}
14. Qe6+ {[%clk 0:02:32.7]} 14... Kh8 {[%clk 0:01:51.7]} 15. Nf7+ {[%clk
0:02:20.6]} 15... Rxf7 {[%clk 0:01:50.9]} 16. Qxf7 {[%clk 0:02:21.5]} 16... Qc7
{[%clk 0:01:23.5]} 17. Nd2 {[%clk 0:02:12.6]} 17... Rf8 {[%clk 0:01:20.1]} 18.
Qe6 {[%clk 0:02:12.4]} 18... Nf4 {[%clk 0:01:16.9]} 19. Qg4 {[%clk 0:02:07.3]}
19... h5 {[%clk 0:01:02.7]} 20. Qd1 {[%clk 0:02:00.9]} 20... e5 {[%clk
0:00:32.7]} 21. Ne4 {[%clk 0:01:55.4]} 21... Rd8 {[%clk 0:00:16.3]} 22. Qc2
{[%clk 0:01:48.7]} 22... Nbd5 {[%clk 0:00:12]} 23. Bxf4 {[%clk 0:01:45.2]} 23...
Nxf4 {[%clk 0:00:11.5]} 24. Rad1 {[%clk 0:01:45.7]} 24... Rf8 {[%clk 0:00:07.8]}
25. f3 {[%clk 0:01:38.8]} 1-0

[Event "Late-Titled-Tuesday-Blitz-June-18-2024"]
[Site "Chess.com"]
[Date "2024.06.18"]
[Round "6"]
[White "ManMish2"]
[Black "canhhuan"]
[Result "0-1"]
[WhiteElo "2637"]
[BlackElo "2514"]
[TimeControl "180+1"]
[EndTime "15:07:22 PDT"]
[Termination "canhhuan won by resignation"]

1. e4 {[%clk 0:03:00.9]} 1... c5 {[%clk 0:02:58.6]} 2. c3 {[%clk 0:03:00.3]}
2... e6 {[%clk 0:02:59.5]} 3. Nf3 {[%clk 0:02:56.7]} 3... d5 {[%clk 0:02:59.2]}
4. e5 {[%clk 0:02:55.8]} 4... Ne7 {[%clk 0:02:58.5]} 5. d4 {[%clk 0:02:49]} 5...
Nd7 {[%clk 0:02:57.7]} 6. Bd3 {[%clk 0:02:46.9]} 6... Nc6 {[%clk 0:02:56.7]} 7.
O-O {[%clk 0:02:46.2]} 7... Qb6 {[%clk 0:02:55.9]} 8. Bc2 {[%clk 0:02:44.3]}
8... h6 {[%clk 0:02:55]} 9. a3 {[%clk 0:02:29.6]} 9... a5 {[%clk 0:02:53.9]} 10.
a4 {[%clk 0:02:26.6]} 10... cxd4 {[%clk 0:02:53.2]} 11. cxd4 {[%clk 0:02:26]}
11... Nb4 {[%clk 0:02:52.5]} 12. Nc3 {[%clk 0:02:20.9]} 12... Nxc2 {[%clk
0:02:52.5]} 13. Qxc2 {[%clk 0:02:21.8]} 13... Bb4 {[%clk 0:02:52]} 14. Nb5
{[%clk 0:02:13.2]} 14... O-O {[%clk 0:02:51.1]} 15. Bd2 {[%clk 0:02:04.5]} 15...
Bxd2 {[%clk 0:02:50.5]} 16. Qxd2 {[%clk 0:01:55.2]} 16... f6 {[%clk 0:02:50]}
17. exf6 {[%clk 0:01:54.2]} 17... Nxf6 {[%clk 0:02:50.9]} 18. Ne5 {[%clk
0:01:53.5]} 18... Bd7 {[%clk 0:02:46.6]} 19. Nxd7 {[%clk 0:01:53.3]} 19... Nxd7
{[%clk 0:02:47.5]} 20. Rfe1 {[%clk 0:01:51.7]} 20... Rae8 {[%clk 0:02:41.7]} 21.
Re2 {[%clk 0:01:45.3]} 21... Rf6 {[%clk 0:02:33.5]} 22. Rae1 {[%clk 0:01:44.2]}
22... Nb8 {[%clk 0:02:30.9]} 23. b4 {[%clk 0:01:25.4]} 23... axb4 {[%clk
0:02:29.9]} 24. Qxb4 {[%clk 0:01:26.3]} 24... Nc6 {[%clk 0:02:29.3]} 25. Qd6
{[%clk 0:01:25.8]} 25... Rd8 {[%clk 0:02:28.9]} 26. Qc7 {[%clk 0:00:38]} 26...
Qxc7 {[%clk 0:02:24.8]} 27. Nxc7 {[%clk 0:00:38.9]} 27... Nxd4 {[%clk
0:02:24.9]} 28. Rd2 {[%clk 0:00:39.2]} 28... Rd7 {[%clk 0:02:24.8]} 29. Ne8
{[%clk 0:00:17.9]} 29... Rf4 {[%clk 0:02:17.7]} 30. Red1 {[%clk 0:00:14]} 30...
e5 {[%clk 0:02:14.6]} 31. f3 {[%clk 0:00:13.1]} 31... Kf7 {[%clk 0:02:10.9]} 32.
Re1 {[%clk 0:00:13]} 32... Kxe8 {[%clk 0:02:10]} 33. Rxe5+ {[%clk 0:00:12.9]}
33... Kf7 {[%clk 0:02:09.9]} 34. Kf2 {[%clk 0:00:11.7]} 34... Kf6 {[%clk
0:02:09.6]} 35. Re1 {[%clk 0:00:11.1]} 35... Nc6 {[%clk 0:02:08.1]} 36. Red1
{[%clk 0:00:08.5]} 36... Rxa4 {[%clk 0:02:07.1]} 37. Rxd5 {[%clk 0:00:08.4]}
37... Rxd5 {[%clk 0:02:07.7]} 38. Rxd5 {[%clk 0:00:08.8]} 38... Ra2+ {[%clk
0:02:08.1]} 39. Kg3 {[%clk 0:00:08.6]} 39... Rb2 {[%clk 0:02:07.4]} 40. Rd7
{[%clk 0:00:08.3]} 40... Ne7 {[%clk 0:02:06.9]} 41. Kf4 {[%clk 0:00:07.8]} 41...
Nf5 {[%clk 0:02:06.5]} 42. Rc7 {[%clk 0:00:06.6]} 42... Rb4+ {[%clk 0:02:05.7]}
0-1

[Event "Late-Titled-Tuesday-Blitz-June-18-2024"]
[Site "Chess.com"]
[Date "2024.06.18"]
[Round "6"]
[White "randomo"]
[Black "Tolya2"]
[Result "0-1"]
[WhiteElo "2314"]
[BlackElo "2460"]
[TimeControl "180+1"]
[EndTime "15:07:32 PDT"]
[Termination "Tolya2 won by resignation"]

1. e4 {[%clk 0:02:52.2]} 1... c5 {[%clk 0:02:59]} 2. c3 {[%clk 0:02:52.2]} 2...
d5 {[%clk 0:02:58.2]} 3. exd5 {[%clk 0:02:53]} 3... Qxd5 {[%clk 0:02:57.9]} 4.
d4 {[%clk 0:02:53.3]} 4... Nf6 {[%clk 0:02:57.6]} 5. Nf3 {[%clk 0:02:53.4]} 5...
Bg4 {[%clk 0:02:57.3]} 6. dxc5 {[%clk 0:02:52.7]} 6... Qxc5 {[%clk 0:02:55.5]}
7. Be3 {[%clk 0:02:51.6]} 7... Qc7 {[%clk 0:02:55.2]} 8. Qa4+ {[%clk 0:02:50.7]}
8... Nbd7 {[%clk 0:02:45.5]} 9. Nbd2 {[%clk 0:02:49.7]} 9... Bxf3 {[%clk
0:02:44.5]} 10. Nxf3 {[%clk 0:02:49]} 10... e6 {[%clk 0:02:43.1]} 11. Bb5 {[%clk
0:02:45.3]} 11... a6 {[%clk 0:02:34.6]} 12. Rd1 {[%clk 0:02:39]} 12... Rd8
{[%clk 0:02:33.9]} 13. Be2 {[%clk 0:02:37.9]} 13... Bc5 {[%clk 0:02:30.6]} 14.
Bxc5 {[%clk 0:02:35.6]} 14... Qxc5 {[%clk 0:02:29.3]} 15. Qb3 {[%clk 0:02:09.3]}
15... Qc7 {[%clk 0:02:28.1]} 16. O-O {[%clk 0:02:05.3]} 16... O-O {[%clk
0:02:27.5]} 17. Qb4 {[%clk 0:01:56.2]} 17... Nd5 {[%clk 0:02:24.7]} 18. Qh4
{[%clk 0:01:55.5]} 18... N7f6 {[%clk 0:02:17.6]} 19. g3 {[%clk 0:01:37.8]} 19...
Ne7 {[%clk 0:02:13.7]} 20. Bd3 {[%clk 0:01:31.2]} 20... h6 {[%clk 0:02:03.5]}
21. Rfe1 {[%clk 0:01:21.5]} 21... Rd5 {[%clk 0:01:54.8]} 22. Bc2 {[%clk
0:01:12]} 22... Rfd8 {[%clk 0:01:53]} 23. Kg2 {[%clk 0:00:37.6]} 23... Qc6
{[%clk 0:01:50.5]} 24. Rxd5 {[%clk 0:00:37.2]} 24... Rxd5 {[%clk 0:01:48.9]} 25.
Be4 {[%clk 0:00:34.1]} 25... Nxe4 {[%clk 0:01:48.4]} 26. Qxe4 {[%clk 0:00:35]}
26... Qd7 {[%clk 0:01:43.3]} 27. Ne5 {[%clk 0:00:26.1]} 27... Qd6 {[%clk
0:01:39.8]} 28. Nc4 {[%clk 0:00:12]} 28... Qd8 {[%clk 0:01:37.6]} 29. Re2 {[%clk
0:00:12.1]} 29... Nc6 {[%clk 0:01:34.4]} 30. h3 {[%clk 0:00:09.7]} 30... b5
{[%clk 0:01:33.7]} 31. Ne3 {[%clk 0:00:09.5]} 31... Rd6 {[%clk 0:01:28]} 32. Qc2
{[%clk 0:00:08.9]} 32... Ne5 {[%clk 0:01:24.5]} 33. Nf1 {[%clk 0:00:08.4]} 33...
Qa8+ {[%clk 0:01:24.1]} 0-1

[Event "Late-Titled-Tuesday-Blitz-June-18-2024"]
[Site "Chess.com"]
[Date "2024.06.18"]
[Round "6"]
[White "Road2GM3000"]
[Black "Sondremelaa"]
[Result "0-1"]
[WhiteElo "2455"]
[BlackElo "2621"]
[TimeControl "180+1"]
[EndTime "15:07:38 PDT"]
[Termination "Sondremelaa won by resignation"]

1. d4 {[%clk 0:03:00.9]} 1... d5 {[%clk 0:02:58]} 2. c4 {[%clk 0:03:01.1]} 2...
e6 {[%clk 0:02:58.4]} 3. Nc3 {[%clk 0:03:01.1]} 3... a6 {[%clk 0:02:59]} 4. cxd5
{[%clk 0:03:02]} 4... exd5 {[%clk 0:02:58.8]} 5. Nf3 {[%clk 0:03:02.7]} 5... Nf6
{[%clk 0:02:58.7]} 6. Bg5 {[%clk 0:03:03.3]} 6... Be6 {[%clk 0:02:59.1]} 7. e3
{[%clk 0:03:02.4]} 7... Nbd7 {[%clk 0:02:59.3]} 8. Ne5 {[%clk 0:03:02.3]} 8...
Be7 {[%clk 0:02:43.8]} 9. f4 {[%clk 0:03:02.2]} 9... c5 {[%clk 0:02:43.6]} 10.
Bd3 {[%clk 0:02:59.5]} 10... cxd4 {[%clk 0:02:36.9]} 11. exd4 {[%clk 0:03:00.4]}
11... Qb6 {[%clk 0:02:36.4]} 12. f5 {[%clk 0:01:27.7]} 12... Qxb2 {[%clk
0:01:14.4]} 13. fxe6 {[%clk 0:01:04.4]} 13... Nxe5 {[%clk 0:01:05.4]} 14. dxe5
{[%clk 0:00:25.6]} 14... Qxc3+ {[%clk 0:01:02.8]} 15. Kf1 {[%clk 0:00:21.2]}
15... Qxe5 {[%clk 0:00:56.3]} 16. exf7+ {[%clk 0:00:18.1]} 16... Kxf7 {[%clk
0:00:56.5]} 17. g3 {[%clk 0:00:15.6]} 17... Qxg5 {[%clk 0:00:53.9]} 18. Kg2
{[%clk 0:00:15]} 18... Rhf8 {[%clk 0:00:51.3]} 19. Rf1 {[%clk 0:00:15.3]} 19...
Kg8 {[%clk 0:00:50.2]} 20. Be2 {[%clk 0:00:15.8]} 20... Ne4 {[%clk 0:00:47.6]}
21. Qxd5+ {[%clk 0:00:12.9]} 21... Qxd5 {[%clk 0:00:46.9]} 0-1

[Event "Late-Titled-Tuesday-Blitz-June-18-2024"]
[Site "Chess.com"]
[Date "2024.06.18"]
[Round "6"]
[White "reevecanada"]
[Black "ckgchess"]
[Result "0-1"]
[WhiteElo "2627"]
[BlackElo "2890"]
[TimeControl "180+1"]
[EndTime "15:07:46 PDT"]
[Termination "ckgchess won by checkmate"]

1. Nf3 {[%clk 0:03:00.9]} 1... g6 {[%clk 0:03:00.2]} 2. e4 {[%clk 0:02:58.7]}
2... Bg7 {[%clk 0:03:01.1]} 3. d4 {[%clk 0:02:58.6]} 3... c5 {[%clk 0:03:00.7]}
4. c3 {[%clk 0:02:58.5]} 4... cxd4 {[%clk 0:03:00.8]} 5. cxd4 {[%clk 0:02:58.1]}
5... d5 {[%clk 0:03:01.5]} 6. exd5 {[%clk 0:02:57.8]} 6... Nf6 {[%clk
0:03:01.4]} 7. d6 {[%clk 0:02:57]} 7... Qxd6 {[%clk 0:03:01.1]} 8. Nc3 {[%clk
0:02:57.7]} 8... O-O {[%clk 0:03:01.3]} 9. Bd3 {[%clk 0:02:57.3]} 9... Nc6
{[%clk 0:03:01.5]} 10. Be3 {[%clk 0:02:55.6]} 10... Bg4 {[%clk 0:02:54]} 11. O-O
{[%clk 0:02:52.2]} 11... Bxf3 {[%clk 0:02:36.7]} 12. Qxf3 {[%clk 0:02:49.6]}
12... Nxd4 {[%clk 0:02:37.2]} 13. Bxd4 {[%clk 0:02:39.1]} 13... Qxd4 {[%clk
0:02:38.1]} 14. Rad1 {[%clk 0:02:38]} 14... Qb4 {[%clk 0:02:27.3]} 15. Qe2
{[%clk 0:02:31.3]} 15... e6 {[%clk 0:02:26.3]} 16. a3 {[%clk 0:02:22.8]} 16...
Qb6 {[%clk 0:02:26.4]} 17. b4 {[%clk 0:02:21.1]} 17... Rac8 {[%clk 0:02:17.9]}
18. Ne4 {[%clk 0:02:17.9]} 18... Nd5 {[%clk 0:02:16.8]} 19. Qf3 {[%clk
0:02:08.5]} 19... a5 {[%clk 0:02:11.5]} 20. b5 {[%clk 0:02:04.4]} 20... a4
{[%clk 0:02:08.7]} 21. Rc1 {[%clk 0:02:03.8]} 21... Bb2 {[%clk 0:02:03.6]} 22.
Rb1 {[%clk 0:01:50.8]} 22... Bg7 {[%clk 0:01:53.1]} 23. Rbc1 {[%clk 0:01:49.7]}
23... Rfd8 {[%clk 0:01:18.4]} 24. Bc4 {[%clk 0:01:35.6]} 24... Bb2 {[%clk
0:01:01.6]} 25. Rc2 {[%clk 0:01:26.5]} 25... Qd4 {[%clk 0:00:57.8]} 26. Rd1
{[%clk 0:01:04.9]} 26... Qe5 {[%clk 0:00:57.3]} 27. Rdd2 {[%clk 0:00:44.6]}
27... Bxa3 {[%clk 0:00:48.3]} 28. Qxa3 {[%clk 0:00:28.8]} 28... Qxe4 {[%clk
0:00:48.2]} 29. Bxd5 {[%clk 0:00:22]} 29... Qe1# {[%clk 0:00:47.5]} 0-1

[Event "Late-Titled-Tuesday-Blitz-June-18-2024"]
[Site "Chess.com"]
[Date "2024.06.18"]
[Round "6"]
[White "bazar-wokzal"]
[Black "BirdMaster3000"]
[Result "1-0"]
[WhiteElo "2602"]
[BlackElo "2762"]
[TimeControl "180+1"]
[EndTime "15:07:50 PDT"]
[Termination "bazar-wokzal won by resignation"]

1. e4 {[%clk 0:03:00.9]} 1... c5 {[%clk 0:03:00]} 2. c3 {[%clk 0:03:00.4]} 2...
d5 {[%clk 0:02:59.4]} 3. exd5 {[%clk 0:03:00.3]} 3... Qxd5 {[%clk 0:03:00]} 4.
d4 {[%clk 0:02:59.7]} 4... g6 {[%clk 0:02:59.2]} 5. dxc5 {[%clk 0:02:58.6]} 5...
Qxc5 {[%clk 0:02:57.7]} 6. Be3 {[%clk 0:02:58]} 6... Qc7 {[%clk 0:02:57.7]} 7.
Bxa7 {[%clk 0:02:56.7]} 7... Nc6 {[%clk 0:02:46.6]} 8. Be3 {[%clk 0:02:54.5]}
8... Nf6 {[%clk 0:02:44.7]} 9. Nf3 {[%clk 0:02:53.2]} 9... Bg7 {[%clk
0:02:44.4]} 10. Be2 {[%clk 0:02:51.4]} 10... Ng4 {[%clk 0:02:41.4]} 11. Bg5
{[%clk 0:02:47.8]} 11... h6 {[%clk 0:02:40.6]} 12. Bh4 {[%clk 0:02:47.7]} 12...
Qb6 {[%clk 0:02:30.9]} 13. Qd2 {[%clk 0:02:43.2]} 13... O-O {[%clk 0:02:26.7]}
14. O-O {[%clk 0:02:39.4]} 14... Rd8 {[%clk 0:02:26.7]} 15. Qc1 {[%clk
0:02:38.8]} 15... Bf5 {[%clk 0:02:22.6]} 16. Na3 {[%clk 0:02:35.2]} 16... Qc5
{[%clk 0:02:14.1]} 17. h3 {[%clk 0:02:26.9]} 17... Nge5 {[%clk 0:02:12.4]} 18.
Nxe5 {[%clk 0:02:21.2]} 18... Nxe5 {[%clk 0:02:11.7]} 19. b4 {[%clk 0:02:13.8]}
19... Qc7 {[%clk 0:02:11.6]} 20. Nb5 {[%clk 0:02:13.4]} 20... Qc6 {[%clk
0:02:02.4]} 21. Bxe7 {[%clk 0:02:06.5]} 21... Nd3 {[%clk 0:02:01.8]} 22. Bxd3
{[%clk 0:01:54]} 22... Rxd3 {[%clk 0:02:02.7]} 23. Nd4 {[%clk 0:01:49.9]} 23...
Bxd4 {[%clk 0:01:57.5]} 24. cxd4 {[%clk 0:01:49.5]} 24... Rc3 {[%clk 0:01:49.1]}
25. Qxh6 {[%clk 0:01:45.3]} 25... Re8 {[%clk 0:01:45.1]} 26. Bg5 {[%clk
0:01:38.7]} 26... f6 {[%clk 0:01:05.8]} 27. Be3 {[%clk 0:01:26.6]} 27... Rexe3
{[%clk 0:00:58.8]} 28. fxe3 {[%clk 0:01:23]} 28... Rc2 {[%clk 0:00:58.5]} 29.
Rf2 {[%clk 0:01:19.6]} 29... Rxf2 {[%clk 0:00:58]} 30. Kxf2 {[%clk 0:01:19.9]}
30... Qc2+ {[%clk 0:00:58.9]} 31. Kg3 {[%clk 0:01:19.1]} 31... Be4 {[%clk
0:00:58.7]} 32. Rg1 {[%clk 0:01:17.7]} 32... Kf7 {[%clk 0:00:42.1]} 33. Qf4
{[%clk 0:01:13.1]} 33... g5 {[%clk 0:00:41.5]} 34. Qg4 {[%clk 0:01:05.9]} 34...
Qc7+ {[%clk 0:00:37.4]} 35. Kf2 {[%clk 0:01:04]} 35... Bd3 {[%clk 0:00:31.9]}
36. Re1 {[%clk 0:00:54.5]} 1-0

[Event "Late-Titled-Tuesday-Blitz-June-18-2024"]
[Site "Chess.com"]
[Date "2024.06.18"]
[Round "6"]
[White "Korchmar_Vasiliy"]
[Black "Giantgoogachess"]
[Result "0-1"]
[WhiteElo "2629"]
[BlackElo "2504"]
[TimeControl "180+1"]
[EndTime "15:07:50 PDT"]
[Termination "Giantgoogachess won on time"]

1. e4 {[%clk 0:03:00.9]} 1... c5 {[%clk 0:02:57.1]} 2. d4 {[%clk 0:03:00.5]}
2... cxd4 {[%clk 0:02:56.7]} 3. Qxd4 {[%clk 0:03:01.4]} 3... Nc6 {[%clk
0:02:55.3]} 4. Qd3 {[%clk 0:03:01.8]} 4... Nf6 {[%clk 0:02:54.9]} 5. Nc3 {[%clk
0:03:02.3]} 5... e6 {[%clk 0:02:53]} 6. Bf4 {[%clk 0:02:59.5]} 6... a6 {[%clk
0:02:50.7]} 7. O-O-O {[%clk 0:02:59.3]} 7... b5 {[%clk 0:02:51.3]} 8. e5 {[%clk
0:02:49.8]} 8... Ng4 {[%clk 0:02:50]} 9. Qf3 {[%clk 0:02:22.1]} 9... h5 {[%clk
0:02:40.6]} 10. h3 {[%clk 0:02:15.2]} 10... Bb7 {[%clk 0:02:38.7]} 11. hxg4
{[%clk 0:02:05.6]} 11... hxg4 {[%clk 0:02:37.5]} 12. Rxh8 {[%clk 0:02:06.5]}
12... gxf3 {[%clk 0:02:36.7]} 13. Ne4 {[%clk 0:02:07.2]} 13... Nxe5 {[%clk
0:02:07.3]} 14. Nd6+ {[%clk 0:01:49.5]} 14... Ke7 {[%clk 0:02:06.5]} 15. Bxe5
{[%clk 0:01:31]} 15... fxg2 {[%clk 0:01:58.9]} 16. Be2 {[%clk 0:01:28]} 16...
Bc6 {[%clk 0:01:56.9]} 17. Nh3 {[%clk 0:01:19.5]} 17... f6 {[%clk 0:01:52.2]}
18. Nf4 {[%clk 0:00:58.4]} 18... fxe5 {[%clk 0:01:49.5]} 19. Ng6+ {[%clk
0:00:58.1]} 19... Kf6 {[%clk 0:01:48.9]} 20. Rxf8+ {[%clk 0:00:58.6]} 20... Qxf8
{[%clk 0:01:48.3]} 21. Nxf8 {[%clk 0:00:58.8]} 21... Rxf8 {[%clk 0:01:48.5]} 22.
Bd3 {[%clk 0:00:26]} 22... Ke7 {[%clk 0:01:05]} 23. Ne4 {[%clk 0:00:11.9]} 23...
Bxe4 {[%clk 0:01:04.5]} 24. Bxe4 {[%clk 0:00:12.8]} 24... Rxf2 {[%clk
0:01:04.6]} 25. Re1 {[%clk 0:00:01]} 25... Rf1 {[%clk 0:00:58.6]} 26. Kd2 {[%clk
0:00:01]} 26... Rxe1 {[%clk 0:00:58.6]} 0-1

[Event "Late-Titled-Tuesday-Blitz-June-18-2024"]
[Site "Chess.com"]
[Date "2024.06.18"]
[Round "6"]
[White "Tunahan_Makaraci"]
[Black "gabduschew"]
[Result "1-0"]
[WhiteElo "2627"]
[BlackElo "2370"]
[TimeControl "180+1"]
[EndTime "15:07:53 PDT"]
[Termination "Tunahan_Makaraci won by resignation"]

1. e4 {[%clk 0:03:00.9]} 1... e5 {[%clk 0:02:59.8]} 2. Nc3 {[%clk 0:03:00]} 2...
Nf6 {[%clk 0:02:57.1]} 3. f4 {[%clk 0:03:00.5]} 3... d5 {[%clk 0:02:55.4]} 4.
fxe5 {[%clk 0:03:01]} 4... Nxe4 {[%clk 0:02:52.9]} 5. Qf3 {[%clk 0:03:01.4]}
5... f5 {[%clk 0:02:47.6]} 6. d3 {[%clk 0:03:00.8]} 6... Nxc3 {[%clk 0:02:45.8]}
7. bxc3 {[%clk 0:03:01.7]} 7... d4 {[%clk 0:02:43.1]} 8. Be2 {[%clk 0:03:00.5]}
8... Nc6 {[%clk 0:02:26.2]} 9. Qg3 {[%clk 0:02:58.8]} 9... Be6 {[%clk 0:02:12]}
10. Bf3 {[%clk 0:02:53.4]} 10... Qd7 {[%clk 0:02:09]} 11. Ne2 {[%clk 0:02:46.4]}
11... dxc3 {[%clk 0:02:02.1]} 12. Bxc6 {[%clk 0:02:41.6]} 12... Qxc6 {[%clk
0:01:58.3]} 13. O-O {[%clk 0:02:42.2]} 13... O-O-O {[%clk 0:01:54]} 14. Be3
{[%clk 0:02:41.8]} 14... a6 {[%clk 0:01:50.1]} 15. Nd4 {[%clk 0:02:29.1]} 15...
Qd5 {[%clk 0:01:49.2]} 16. Nxf5 {[%clk 0:02:18.6]} 16... Bc5 {[%clk 0:01:16.8]}
17. Bxc5 {[%clk 0:02:05.7]} 17... Qxc5+ {[%clk 0:01:17.7]} 18. d4 {[%clk
0:02:05.3]} 18... Qc4 {[%clk 0:01:10.8]} 19. Ne7+ {[%clk 0:01:13.2]} 19... Kb8
{[%clk 0:01:10.1]} 20. Qxg7 {[%clk 0:01:13.2]} 20... Qxd4+ {[%clk 0:01:04.5]}
21. Kh1 {[%clk 0:01:13.1]} 21... Qd2 {[%clk 0:00:58.9]} 22. Rab1 {[%clk
0:01:09.4]} 22... Ka8 {[%clk 0:00:58.1]} 23. Qf6 {[%clk 0:00:41.6]} 23... Bc4
{[%clk 0:00:52.5]} 24. Rfe1 {[%clk 0:00:35.6]} 24... Rhf8 {[%clk 0:00:46.7]} 25.
Qh4 {[%clk 0:00:35.6]} 25... Qxc2 {[%clk 0:00:42]} 26. Qxc4 {[%clk 0:00:33]}
26... Rd2 {[%clk 0:00:40.6]} 27. Qxc7 {[%clk 0:00:29]} 27... Rb8 {[%clk
0:00:40]} 28. Nc6 {[%clk 0:00:22.3]} 1-0

[Event "Late-Titled-Tuesday-Blitz-June-18-2024"]
[Site "Chess.com"]
[Date "2024.06.18"]
[Round "6"]
[White "esskeettit"]
[Black "Andrii_Prydun"]
[Result "1-0"]
[WhiteElo "2520"]
[BlackElo "2368"]
[TimeControl "180+1"]
[EndTime "15:08:00 PDT"]
[Termination "esskeettit won by resignation"]

1. d4 {[%clk 0:03:00.9]} 1... d5 {[%clk 0:02:49.2]} 2. c4 {[%clk 0:03:00.3]}
2... e6 {[%clk 0:02:48.4]} 3. Nc3 {[%clk 0:03:00.6]} 3... Nf6 {[%clk 0:02:45.3]}
4. cxd5 {[%clk 0:03:00.9]} 4... Nxd5 {[%clk 0:02:43.9]} 5. e4 {[%clk 0:02:59]}
5... Nxc3 {[%clk 0:02:43.8]} 6. bxc3 {[%clk 0:02:59.9]} 6... c5 {[%clk
0:02:38.7]} 7. Nf3 {[%clk 0:02:59.2]} 7... a6 {[%clk 0:02:07.7]} 8. Bd3 {[%clk
0:02:49.4]} 8... b5 {[%clk 0:01:42.2]} 9. O-O {[%clk 0:02:46.5]} 9... b4 {[%clk
0:01:33.7]} 10. dxc5 {[%clk 0:02:21.4]} 10... bxc3 {[%clk 0:01:27.8]} 11. Be3
{[%clk 0:02:17.1]} 11... Nd7 {[%clk 0:01:22.8]} 12. Qa4 {[%clk 0:02:02.4]} 12...
Qc7 {[%clk 0:01:14.5]} 13. c6 {[%clk 0:01:50.3]} 13... Nb8 {[%clk 0:01:13.3]}
14. Rfc1 {[%clk 0:01:03.7]} 14... Qxc6 {[%clk 0:01:10.7]} 15. Qb3 {[%clk
0:00:51.1]} 15... Nd7 {[%clk 0:00:31]} 16. Rxc3 {[%clk 0:00:50.7]} 16... Qb7
{[%clk 0:00:28.6]} 17. Rac1 {[%clk 0:00:45.4]} 17... Kd8 {[%clk 0:00:02.9]} 18.
Rxc8+ {[%clk 0:00:39.3]} 18... Qxc8 {[%clk 0:00:01.8]} 19. Rxc8+ {[%clk
0:00:38.5]} 19... Rxc8 {[%clk 0:00:01.2]} 20. Bxa6 {[%clk 0:00:36.4]} 1-0